[Event "44th Chess Olympiad Women 2022"]
[Site "Chennai"]
[Date "2022.08.02"]
[Round "5.33"]
[White "Otazo Sanchez, Annyd Gabriela"]
[Black "Banda Natalie Katlo"]
[Result "1/2-1/2"]
[WhiteElo "1932"]
[BlackElo "1688"]
[Annotator "NA RC"]
[PlyCount "156"]
[EventDate "2022.??.??"]
[TimeControl "60"]

1. e4 {[%emt 0:00:03]} c6 {[%emt 0:00:15]} 2. d4 {[%emt 0:00:12]} d5 {[%emt 0:
00:00]} 3. exd5 {[%emt 0:00:12]} cxd5 {[%emt 0:00:07]} 4. Bd3 {[%emt 0:00:07]}
Nf6 {[%emt 0:00:26]} 5. Bf4 {[%emt 0:00:22]} Bg4 {[%emt 0:02:55]} 6. Nf3 {
[%emt 0:00:32]} Bxf3 {[%emt 0:02:24]} 7. Qxf3 {[%emt 0:00:33]} Qb6 {[%emt 0:00:
00]} 8. Nc3 {[%emt 0:09:18]} Nc6 {[%emt 0:08:40]} 9. O-O {[%emt 0:18:02]} Nxd4
{[%emt 0:01:27]} 10. Qe3 {[%emt 0:00:38]} Nc6 {[%emt 0:10:35]} 11. Qxb6 {
[%emt 0:02:27]} axb6 {[%emt 0:00:10]} 12. Nb5 {[%emt 0:00:13]} Kd7 {[%emt 0:00:
00]} 13. Be3 {[%emt 0:17:28]} Nb4 {[%emt 0:02:53]} 14. Be2 {[%emt 0:06:56]}
Nxc2 {[%emt 0:01:44]} 15. Rac1 {[%emt 0:00:06]} Nxe3 {[%emt 0:00:20]} 16. Rc7+
{[%emt 0:00:12]} Kd8 {[%emt 0:01:44]} 17. fxe3 {[%emt 0:00:05]} Rxa2 {[%emt 0:
00:00]} 18. Rxb7 {[%emt 0:06:34]} Rxb2 {[%emt 0:00:48]} 19. Rc1 {[%emt 0:09:00]
} Ne8 {[%emt 0:05:40]} 20. Bg4 {[%emt 0:06:25]} e6 {[%emt 0:01:33]} 21. Bxe6 {
[%emt 0:05:30]} fxe6 {[%emt 0:02:34]} 22. Nd4 {[%emt 0:00:03]} Bc5 {[%emt 0:00:
00]} 23. Nxe6+ {[%emt 0:03:49]} Kc8 {[%emt 0:00:18]} 24. Nxc5 {[%emt 0:00:06]}
Rb5 {[%emt 0:03:10]} 25. Ra1 {[%emt 0:10:49]} Rxc5 {[%emt 0:01:33]} 26. Rxb6 {
[%emt 0:00:44]} Nc7 {[%emt 0:01:51]} 27. Rf1 {[%emt 0:01:33]} Rb5 {[%emt 0:00:
00]} 28. Rxb5 {[%emt 0:01:20]} Nxb5 {[%emt 0:00:19]} 29. Rf7 {[%emt 0:00:04]}
Rg8 {[%emt 0:01:24]} 30. Kf2 {[%emt 0:00:14]} Nd6 {[%emt 0:00:46]} 31. Ra7 {
[%emt 0:00:28]} Rf8+ {[%emt 0:00:22]} 32. Ke2 {[%emt 0:00:29]} Rf7 {[%emt 0:00:
00]} 33. Ra5 {[%emt 0:00:19]} Ne4 {[%emt 0:00:29]} 34. Kd3 {[%emt 0:00:16]} Rd7
{[%emt 0:01:00]} 35. Kd4 {[%emt 0:00:10]} Nf6 {[%emt 0:00:29]} 36. h3 {[%emt 0:
00:00]} Kb7 {[%emt 0:00:47]} 37. g4 {[%emt 0:01:43]} h6 {[%emt 0:01:09]} 38.
Ra3 {[%emt 0:01:20]} Re7 {[%emt 0:00:38]} 39. Rb3+ {[%emt 0:00:15]} Kc6 {
[%emt 0:00:19]} 40. Rb8 {[%emt 0:01:00]} Re4+ {[%emt 0:00:17]} 41. Kd3 {
[%emt 0:30:06]} Nxg4 {[%emt 0:30:36]} 42. hxg4 {[%emt 0:00:15]} Rxg4 {[%emt 0:
00:00]} 43. Ke2 {[%emt 0:00:00]} h5 {[%emt 0:00:00]} 44. Kf3 {[%emt 0:00:00]}
g6 {[%emt 0:00:00]} 45. Rf8 {[%emt 0:00:00]} Kd6 {[%emt 0:00:00]} 46. Rh8 {
[%emt 0:00:00]} Ke5 {[%emt 0:00:00]} 47. Re8+ {[%emt 0:00:00]} Kf6 {[%emt 0:00:
00]} 48. Rf8+ {[%emt 0:00:00]} Ke7 {[%emt 0:00:00]} 49. Rg8 {[%emt 0:00:00]}
Kd7 {[%emt 0:00:00]} 50. Rg7+ {[%emt 0:00:00]} Kc6 {[%emt 0:00:00]} 51. Rg8 {
[%emt 0:00:00]} Kc5 {[%emt 0:00:00]} 52. Rc8+ {[%emt 0:00:00]} Kb5 {[%emt 0:00:
00]} 53. Rc7 {[%emt 0:00:00]} g5 {[%emt 0:00:00]} 54. Rh7 {[%emt 0:00:00]} Rh4
{[%emt 0:00:00]} 55. Kg3 {[%emt 0:00:00]} Kc4 {[%emt 0:00:00]} 56. Rd7 {
[%emt 0:00:00]} Re4 {[%emt 0:00:00]} 57. Kf2 {[%emt 0:00:00]} h4 {[%emt 0:00:
00]} 58. Rc7+ {[%emt 0:00:00]} Kd3 {[%emt 0:00:00]} 59. Ra7 {[%emt 0:02:06]} g4
{[%emt 0:00:00]} 60. Ra3+ {[%emt 0:02:06]} Kc4 {[%emt 0:00:00]} 61. Ra4+ {
[%emt 0:00:07]} Kb5 {[%emt 0:00:00]} 62. Ra8 {[%emt 0:00:02]} g3+ {[%emt 0:00:
00]} 63. Kf3 {[%emt 0:00:19]} Kc4 {[%emt 0:00:00]} 64. Rd8 {[%emt 0:01:20]} Re7
{[%emt 0:00:00]} 65. Rh8 {[%emt 0:01:58]} Rf7+ {[%emt 0:00:00]} 66. Kg2 {
[%emt 0:00:15]} Rf2+ {[%emt 0:00:00]} 67. Kg1 {[%emt 0:00:05]} Rh2 {[%emt 0:00:
00]} 68. Rh5 {[%emt 0:01:23]} d4 {[%emt 0:00:00]} 69. exd4 {[%emt 0:00:22]}
Kxd4 {[%emt 0:00:00]} 70. Rh8 {[%emt 0:00:11]} Ke4 {[%emt 0:00:00]} 71. Rf8 {
[%emt 0:03:40]} h3 {[%emt 0:00:00]} 72. Rg8 {[%emt 0:00:58]} Rg2+ {[%emt 0:00:
00]} 73. Kh1 {[%emt 0:00:16]} Kf3 {[%emt 0:00:00]} 74. Rf8+ {[%emt 0:00:10]}
Ke2 {[%emt 0:00:00]} 75. Re8+ {[%emt 0:00:02]} Kd3 {[%emt 0:00:00]} 76. Rd8+ {
[%emt 0:00:51]} Ke4 {[%emt 0:00:00]} 77. Rd4+ {[%emt 0:00:30]} Ke5 {[%emt 0:00:
00]} 78. Rd5+ {[%emt 0:00:11]} Kxd5 {[%emt 0:00:00]} 1/2-1/2

[Event "44th Chess Olympiad Women 2022"]
[Site "Chennai"]
[Date "2022.08.02"]
[Round "5.34"]
[White "Chaves, Jussara"]
[Black "Juarez Garcia, Daniela"]
[Result "1/2-1/2"]
[WhiteElo "1933"]
[BlackElo "1725"]
[Annotator "NA RC"]
[PlyCount "73"]
[EventDate "2022.??.??"]
[TimeControl "60"]

1. b3 {[%emt 0:00:09]} d5 {[%emt 0:01:55]} 2. Bb2 {[%emt 0:00:47]} Nf6 {
[%emt 0:00:46]} 3. f4 {[%emt 0:01:33]} g6 {[%emt 0:01:03]} 4. Nf3 {[%emt 0:00:
00]} Bg7 {[%emt 0:02:30]} 5. e3 {[%emt 0:00:34]} c5 {[%emt 0:01:20]} 6. Be2 {
[%emt 0:05:47]} Nc6 {[%emt 0:04:51]} 7. Ne5 {[%emt 0:03:07]} O-O {[%emt 0:00:
00]} 8. Nxc6 {[%emt 0:00:51]} bxc6 {[%emt 0:00:06]} 9. O-O {[%emt 0:05:53]} Nd7
{[%emt 0:06:28]} 10. Qc1 {[%emt 0:05:20]} e5 {[%emt 0:01:35]} 11. Nc3 {[%emt 0:
00:00]} Qe7 {[%emt 0:11:21]} 12. Na4 {[%emt 0:11:45]} d4 {[%emt 0:07:35]} 13.
exd4 {[%emt 0:07:02]} cxd4 {[%emt 0:04:18]} 14. Ba3 {[%emt 0:00:34]} c5 {
[%emt 0:03:49]} 15. Bb5 {[%emt 0:08:01]} exf4 {[%emt 0:04:15]} 16. Bxd7 {
[%emt 0:00:36]} Qxd7 {[%emt 0:00:04]} 17. Nxc5 {[%emt 0:02:20]} Qc6 {[%emt 0:
00:00]} 18. Nd3 {[%emt 0:03:37]} Bb7 {[%emt 0:01:03]} 19. Rf2 {[%emt 0:00:17]}
Rfc8 {[%emt 0:01:25]} 20. Nc5 {[%emt 0:01:49]} g5 {[%emt 0:06:01]} 21. d3 {
[%emt 0:01:52]} Re8 {[%emt 0:00:55]} 22. Ne4 {[%emt 0:02:39]} h6 {[%emt 0:00:
00]} 23. Nd6 {[%emt 0:10:39]} Re5 {[%emt 0:06:00]} 24. Qd1 {[%emt 0:17:01]} Rd8
{[%emt 0:08:11]} 25. Nc4 {[%emt 0:00:00]} Re3 {[%emt 0:03:04]} 26. Na5 {
[%emt 0:00:01]} Qb5 {[%emt 0:01:36]} 27. Nxb7 {[%emt 0:00:42]} Qxb7 {[%emt 0:
00:00]} 28. Bc5 {[%emt 0:00:55]} Rde8 {[%emt 0:01:58]} 29. Qd2 {[%emt 0:00:26]}
f3 {[%emt 0:01:04]} 30. gxf3 {[%emt 0:01:30]} Rxf3 {[%emt 0:02:17]} 31. Rxf3 {
[%emt 0:00:03]} Qxf3 {[%emt 0:00:04]} 32. Rf1 {[%emt 0:00:16]} Qg4+ {[%emt 0:
00:00]} 33. Qg2 {[%emt 0:00:14]} Qd7 {[%emt 0:00:11]} 34. Qf2 {[%emt 0:01:35]}
Qg4+ {[%emt 0:01:43]} 35. Qg2 {[%emt 0:00:03]} Qd7 {[%emt 0:00:05]} 36. Qf2 {
[%emt 0:00:23]} Qg4+ {[%emt 0:00:06]} 37. Qg2 {[%emt 0:01:20]} 1/2-1/2

[Event "44th Chess Olympiad Women 2022"]
[Site "Chennai"]
[Date "2022.08.02"]
[Round "5.34"]
[White "Natareno, Elvia"]
[Black "Silva, Mariana Sofia T."]
[Result "0-1"]
[WhiteElo "1581"]
[BlackElo "1912"]
[Annotator "NA RC"]
[PlyCount "116"]
[EventDate "2022.??.??"]
[TimeControl "60"]

1. Nf3 {[%emt 0:00:09]} d5 {[%emt 0:00:06]} 2. g3 {[%emt 0:00:33]} c5 {[%emt 0:
00:00]} 3. Bg2 {[%emt 0:00:19]} Nc6 {[%emt 0:00:06]} 4. b3 {[%emt 0:01:55]} e5
{[%emt 0:01:28]} 5. d3 {[%emt 0:00:16]} Be7 {[%emt 0:04:37]} 6. Bb2 {[%emt 0:
00:00]} f6 {[%emt 0:01:39]} 7. O-O {[%emt 0:03:01]} Be6 {[%emt 0:00:08]} 8.
Nbd2 {[%emt 0:02:24]} Qd7 {[%emt 0:04:06]} 9. c4 {[%emt 0:02:18]} d4 {[%emt 0:
00:00]} 10. Ne4 {[%emt 0:04:07]} Nh6 {[%emt 0:02:53]} 11. Ba3 {[%emt 0:04:10]}
b6 {[%emt 0:00:24]} 12. Ne1 {[%emt 0:04:43]} Rc8 {[%emt 0:01:44]} 13. Nc2 {
[%emt 0:08:36]} a5 {[%emt 0:01:26]} 14. Bc1 {[%emt 0:00:25]} Nf7 {[%emt 0:00:
00]} 15. f4 {[%emt 0:09:07]} O-O {[%emt 0:08:33]} 16. a3 {[%emt 0:07:56]} Nd6 {
[%emt 0:14:31]} 17. Bd2 {[%emt 0:05:36]} Nf5 {[%emt 0:05:21]} 18. Rb1 {[%emt 0:
00:00]} exf4 {[%emt 0:02:18]} 19. Bxf4 {[%emt 0:02:54]} Ne5 {[%emt 0:04:15]}
20. Qd2 {[%emt 0:06:13]} Ng6 {[%emt 0:01:44]} 21. Rb2 {[%emt 0:06:14]} Nxf4 {
[%emt 0:00:31]} 22. Qxf4 {[%emt 0:00:18]} Bd8 {[%emt 0:03:41]} 23. b4 {[%emt 0:
00:00]} Bc7 {[%emt 0:03:40]} 24. Qf2 {[%emt 0:05:32]} Ne3 {[%emt 0:04:09]} 25.
Rfb1 {[%emt 0:01:44]} Nxg2 {[%emt 0:01:59]} 26. Qxg2 {[%emt 0:02:12]} Bh3 {
[%emt 0:00:26]} 27. Qf3 {[%emt 0:01:09]} Bg4 {[%emt 0:04:50]} 28. Qg2 {[%emt 0:
00:00]} f5 {[%emt 0:02:46]} 29. Ng5 {[%emt 0:03:51]} h6 {[%emt 0:01:37]} 30.
Nf3 {[%emt 0:00:21]} f4 {[%emt 0:01:25]} 31. bxc5 {[%emt 0:00:43]} fxg3 {
[%emt 0:03:38]} 32. hxg3 {[%emt 0:01:23]} Bh3 {[%emt 0:00:53]} 33. c6 {[%emt 0:
00:00]} Qg4 {[%emt 0:00:42]} 34. Ne5 {[%emt 0:03:10]} Bxe5 {[%emt 0:03:56]} 35.
Qd5+ {[%emt 0:00:07]} Qe6 {[%emt 0:00:05]} 36. Rxb6 {[%emt 0:00:24]} Bxg3 {
[%emt 0:01:23]} 37. Qxe6+ {[%emt 0:01:01]} Bxe6 {[%emt 0:00:02]} 38. Kg2 {
[%emt 0:00:09]} Bc7 {[%emt 0:01:36]} 39. R6b5 {[%emt 0:00:23]} Rf4 {[%emt 0:00:
00]} 40. Ne1 {[%emt 0:02:03]} Rg4+ {[%emt 0:03:44]} 41. Kf2 {[%emt 0:31:02]}
Bg3+ {[%emt 0:30:36]} 42. Kf1 {[%emt 0:00:22]} Bxe1 {[%emt 0:05:40]} 43. Kxe1 {
[%emt 0:00:32]} Rg1+ {[%emt 0:00:10]} 44. Kd2 {[%emt 0:00:05]} Rxb1 {[%emt 0:
00:00]} 45. Rxb1 {[%emt 0:00:08]} Rxc6 {[%emt 0:00:03]} 46. Rb5 {[%emt 0:00:17]
} a4 {[%emt 0:02:24]} 47. Ra5 {[%emt 0:00:19]} g5 {[%emt 0:00:57]} 48. e3 {
[%emt 0:00:12]} dxe3+ {[%emt 0:01:37]} 49. Kxe3 {[%emt 0:00:09]} Bd7 {[%emt 0:
00:00]} 50. Ke4 {[%emt 0:00:38]} Kf7 {[%emt 0:01:18]} 51. c5 {[%emt 0:00:08]}
Rf6 {[%emt 0:00:00]} 52. Ra7 {[%emt 0:00:00]} Ke7 {[%emt 0:00:00]} 53. d4 {
[%emt 0:00:00]} g4 {[%emt 0:00:00]} 54. d5 {[%emt 0:00:00]} Kd8 {[%emt 0:00:00]
} 55. Ke5 {[%emt 0:00:00]} Rg6 {[%emt 0:00:00]} 56. d6 {[%emt 0:00:00]} g3 {
[%emt 0:00:00]} 57. Ra8+ {[%emt 0:00:00]} Bc8 {[%emt 0:00:00]} 58. c6 {[%emt 0:
00:00]} g2 {[%emt 0:00:00]} 0-1

[Event "44th Chess Olympiad Women 2022"]
[Site "Chennai"]
[Date "2022.08.02"]
[Round "5.35"]
[White "Johannsdottir, Johanna Bjorg"]
[Black "Chong, Kimberly"]
[Result "0-1"]
[WhiteElo "1976"]
[BlackElo "1741"]
[Annotator "NA RC"]
[PlyCount "76"]
[EventDate "2022.??.??"]
[TimeControl "60"]

1. e4 {[%emt 0:00:02]} d5 {[%emt 0:00:08]} 2. exd5 {[%emt 0:00:04]} Nf6 {
[%emt 0:00:04]} 3. Nf3 {[%emt 0:00:32]} Nxd5 {[%emt 0:00:18]} 4. d4 {[%emt 0:
00:00]} g6 {[%emt 0:01:20]} 5. c4 {[%emt 0:00:12]} Nb6 {[%emt 0:00:25]} 6. Nc3
{[%emt 0:00:11]} Bg7 {[%emt 0:00:14]} 7. c5 {[%emt 0:00:06]} Nd5 {[%emt 0:00:
00]} 8. Bc4 {[%emt 0:00:05]} e6 {[%emt 0:02:37]} 9. O-O {[%emt 0:02:03]} O-O {
[%emt 0:02:14]} 10. Qb3 {[%emt 0:02:01]} c6 {[%emt 0:07:21]} 11. Ne4 {[%emt 0:
00:00]} b6 {[%emt 0:12:26]} 12. Re1 {[%emt 0:07:57]} bxc5 {[%emt 0:09:53]} 13.
dxc5 {[%emt 0:00:33]} Nd7 {[%emt 0:02:35]} 14. Bg5 {[%emt 0:08:57]} Qa5 {
[%emt 0:04:57]} 15. Bd2 {[%emt 0:02:46]} Qc7 {[%emt 0:04:03]} 16. Qc2 {[%emt 0:
00:00]} Rb8 {[%emt 0:05:25]} 17. Bb3 {[%emt 0:04:16]} a5 {[%emt 0:03:28]} 18.
Rab1 {[%emt 0:01:03]} Nb4 {[%emt 0:02:17]} 19. Bxb4 {[%emt 0:01:00]} Rxb4 {
[%emt 0:02:52]} 20. a3 {[%emt 0:03:21]} Rb8 {[%emt 0:01:51]} 21. Ba4 {[%emt 0:
00:00]} Ba6 {[%emt 0:03:20]} 22. b4 {[%emt 0:04:14]} axb4 {[%emt 0:09:58]} 23.
axb4 {[%emt 0:00:26]} Bb5 {[%emt 0:00:39]} 24. Bb3 {[%emt 0:00:44]} Qf4 {
[%emt 0:01:37]} 25. Nd6 {[%emt 0:08:52]} Qxb4 {[%emt 0:11:03]} 26. Ne4 {
[%emt 0:08:27]} Qa5 {[%emt 0:01:27]} 27. Nfg5 {[%emt 0:11:33]} Ne5 {[%emt 0:00:
00]} 28. Rbd1 {[%emt 0:00:13]} Bd3 {[%emt 0:01:35]} 29. Qa2 {[%emt 0:00:46]}
Qxa2 {[%emt 0:00:16]} 30. Bxa2 {[%emt 0:00:06]} Bc2 {[%emt 0:03:10]} 31. Rd6 {
[%emt 0:04:07]} h6 {[%emt 0:02:57]} 32. f4 {[%emt 0:10:55]} Nd3 {[%emt 0:00:14]
} 33. Re2 {[%emt 0:00:22]} Rb2 {[%emt 0:01:16]} 34. Nxe6 {[%emt 0:02:47]} Rxa2
{[%emt 0:00:33]} 35. Rxd3 {[%emt 0:01:09]} Ra1+ {[%emt 0:00:24]} 36. Kf2 {
[%emt 0:00:26]} Bxd3 {[%emt 0:00:13]} 37. Nxf8 {[%emt 0:02:13]} Bxe2 {[%emt 0:
00:00]} 38. Kxe2 {[%emt 0:01:05]} Kxf8 {[%emt 0:00:14]} 0-1

[Event "44th Chess Olympiad Women 2022"]
[Site "Chennai"]
[Date "2022.08.02"]
[Round "5.35"]
[White "Ray, Hiya"]
[Black "Thorsteinsdottir, Hallgerdur"]
[Result "0-1"]
[WhiteElo "1586"]
[BlackElo "1934"]
[Annotator "NA RC"]
[PlyCount "106"]
[EventDate "2022.??.??"]
[TimeControl "60"]

1. e4 {[%emt 0:00:19]} d5 {[%emt 0:04:31]} 2. exd5 {[%emt 0:03:19]} Qxd5 {
[%emt 0:00:11]} 3. Nc3 {[%emt 0:01:23]} Qd8 {[%emt 0:00:33]} 4. Nf3 {[%emt 0:
00:00]} Bg4 {[%emt 0:00:40]} 5. Bc4 {[%emt 0:01:06]} e6 {[%emt 0:00:55]} 6. O-O
{[%emt 0:01:28]} Nf6 {[%emt 0:05:21]} 7. Be2 {[%emt 0:09:58]} Nbd7 {[%emt 0:00:
00]} 8. d4 {[%emt 0:01:18]} c6 {[%emt 0:01:22]} 9. Bf4 {[%emt 0:03:35]} Be7 {
[%emt 0:03:22]} 10. Nd2 {[%emt 0:03:57]} Bxe2 {[%emt 0:01:29]} 11. Qxe2 {
[%emt 0:00:13]} O-O {[%emt 0:01:32]} 12. Nce4 {[%emt 0:02:45]} Qb6 {[%emt 0:00:
00]} 13. Nb3 {[%emt 0:10:01]} a5 {[%emt 0:05:12]} 14. a4 {[%emt 0:05:32]} Nxe4
{[%emt 0:02:37]} 15. Qxe4 {[%emt 0:00:07]} Nf6 {[%emt 0:00:10]} 16. Qe2 {
[%emt 0:02:07]} Rfd8 {[%emt 0:01:55]} 17. Rfd1 {[%emt 0:01:26]} Rd5 {[%emt 0:
00:00]} 18. Be5 {[%emt 0:06:50]} Rad8 {[%emt 0:07:34]} 19. Nd2 {[%emt 0:07:19]}
R5d7 {[%emt 0:23:50]} 20. Nc4 {[%emt 0:03:11]} Qa6 {[%emt 0:00:23]} 21. b3 {
[%emt 0:03:51]} Nd5 {[%emt 0:00:41]} 22. Rd3 {[%emt 0:03:16]} Bf6 {[%emt 0:00:
00]} 23. Rg3 {[%emt 0:02:16]} Bxe5 {[%emt 0:02:01]} 24. Qxe5 {[%emt 0:03:18]}
g6 {[%emt 0:00:47]} 25. Nd2 {[%emt 0:00:58]} c5 {[%emt 0:07:13]} 26. c4 {
[%emt 0:06:03]} f6 {[%emt 0:01:17]} 27. Qe2 {[%emt 0:02:39]} Nf4 {[%emt 0:00:
00]} 28. Qe1 {[%emt 0:04:45]} cxd4 {[%emt 0:02:57]} 29. Rf3 {[%emt 0:02:08]} e5
{[%emt 0:00:26]} 30. Ne4 {[%emt 0:01:02]} Qc6 {[%emt 0:02:41]} 31. g3 {[%emt 0:
00:00]} Nh5 {[%emt 0:00:06]} 32. g4 {[%emt 0:01:16]} Nf4 {[%emt 0:00:14]} 33.
g5 {[%emt 0:00:29]} fxg5 {[%emt 0:00:33]} 34. Nxg5 {[%emt 0:00:21]} h6 {
[%emt 0:03:06]} 35. Ne4 {[%emt 0:01:40]} d3 {[%emt 0:00:06]} 36. Nd2 {[%emt 0:
00:00]} Qf6 {[%emt 0:00:50]} 37. Kh1 {[%emt 0:01:38]} Kh7 {[%emt 0:01:23]} 38.
Rd1 {[%emt 0:01:44]} Rd4 {[%emt 0:01:15]} 39. Re3 {[%emt 0:00:42]} Ne2 {
[%emt 0:01:55]} 40. Nf3 {[%emt 0:01:28]} Re4 {[%emt 0:01:25]} 41. Qd2 {[%emt 0:
00:00]} Rf4 {[%emt 0:10:11]} 42. Rxd3 {[%emt 0:04:02]} Rxd3 {[%emt 0:03:33]}
43. Qxd3 {[%emt 0:01:34]} Rxf3 {[%emt 0:00:39]} 44. Qxe2 {[%emt 0:01:47]} Rxf2
{[%emt 0:00:33]} 45. Qd3 {[%emt 0:04:01]} e4 {[%emt 0:07:37]} 46. Qd7+ {
[%emt 0:06:11]} Qf7 {[%emt 0:00:07]} 47. Qh3 {[%emt 0:03:00]} Rf5 {[%emt 0:00:
00]} 48. Re1 {[%emt 0:03:50]} Rf3 {[%emt 0:01:38]} 49. Qg2 {[%emt 0:00:00]} b6
{[%emt 0:00:27]} 50. Qe2 {[%emt 0:00:00]} Qf4 {[%emt 0:02:11]} 51. Rd1 {
[%emt 0:01:52]} Rf2 {[%emt 0:01:03]} 52. Rd7+ {[%emt 0:02:43]} Kg8 {[%emt 0:00:
00]} 53. Rd8+ {[%emt 0:00:51]} Kf7 {[%emt 0:00:08]} 0-1

[Event "44th Chess Olympiad Women 2022"]
[Site "Chennai"]
[Date "2022.08.02"]
[Round "5.41"]
[White "Mongeli, Sasha"]
[Black "Enomah Emmanuella Trust"]
[Result "1-0"]
[WhiteElo "1672"]
[BlackElo "1901"]
[Annotator "RC"]
[PlyCount "239"]
[EventDate "2022.??.??"]
[TimeControl "60"]

1. Nf3 {[%emt 0:00:09]} Nf6 {[%emt 0:00:07]} 2. c4 {[%emt 0:00:40]} g6 {
[%emt 0:00:19]} 3. b3 {[%emt 0:00:32]} Bg7 {[%emt 0:00:14]} 4. Bb2 {[%emt 0:00:
00]} d6 {[%emt 0:00:22]} 5. g3 {[%emt 0:02:10]} e5 {[%emt 0:00:48]} 6. d3 {
[%emt 0:00:37]} Nbd7 {[%emt 0:01:01]} 7. Bg2 {[%emt 0:00:56]} O-O {[%emt 0:00:
00]} 8. O-O {[%emt 0:00:41]} a5 {[%emt 0:00:41]} 9. a3 {[%emt 0:02:17]} h6 {
[%emt 0:02:20]} 10. Nc3 {[%emt 0:09:11]} Nc5 {[%emt 0:02:39]} 11. b4 {[%emt 0:
00:00]} Ne6 {[%emt 0:00:37]} 12. Nd5 {[%emt 0:09:23]} c6 {[%emt 0:03:26]} 13.
Nxf6+ {[%emt 0:02:17]} Bxf6 {[%emt 0:00:11]} 14. Qd2 {[%emt 0:04:17]} Bg7 {
[%emt 0:00:33]} 15. Bc3 {[%emt 0:02:21]} Nd4 {[%emt 0:00:52]} 16. Qb2 {[%emt 0:
00:00]} Nxf3+ {[%emt 0:03:24]} 17. Bxf3 {[%emt 0:01:41]} Bh3 {[%emt 0:02:04]}
18. Bg2 {[%emt 0:00:39]} Bxg2 {[%emt 0:00:50]} 19. Kxg2 {[%emt 0:00:07]} axb4 {
[%emt 0:00:45]} 20. axb4 {[%emt 0:02:37]} Qd7 {[%emt 0:08:10]} 21. Ra5 {
[%emt 0:06:07]} b6 {[%emt 0:00:00]} 22. Ra2 {[%emt 0:04:07]} Qb7 {[%emt 0:00:
00]} 23. Rfa1 {[%emt 0:01:35]} f6 {[%emt 0:06:39]} 24. f3 {[%emt 0:02:00]} d5 {
[%emt 0:06:20]} 25. cxd5 {[%emt 0:08:29]} cxd5 {[%emt 0:00:21]} 26. b5 {
[%emt 0:05:21]} Rxa2 {[%emt 0:01:25]} 27. Rxa2 {[%emt 0:00:47]} Ra8 {[%emt 0:
00:00]} 28. Qa1 {[%emt 0:02:00]} Rxa2 {[%emt 0:00:34]} 29. Qxa2 {[%emt 0:00:05]
} Kh7 {[%emt 0:01:26]} 30. Qa6 {[%emt 0:02:24]} Qc7 {[%emt 0:04:08]} 31. Bb4 {
[%emt 0:03:56]} h5 {[%emt 0:02:06]} 32. Qa8 {[%emt 0:05:13]} d4 {[%emt 0:04:05]
} 33. Qc6 {[%emt 0:00:47]} Qa7 {[%emt 0:00:31]} 34. Bd6 {[%emt 0:04:28]} Qa2 {
[%emt 0:00:40]} 35. Kf2 {[%emt 0:00:22]} Qa1 {[%emt 0:02:28]} 36. f4 {[%emt 0:
00:00]} Qa5 {[%emt 0:04:17]} 37. fxe5 {[%emt 0:02:38]} fxe5 {[%emt 0:00:34]}
38. Bc7 {[%emt 0:02:13]} Qd2 {[%emt 0:01:14]} 39. Bxb6 {[%emt 0:00:32]} Qe3+ {
[%emt 0:02:45]} 40. Kf1 {[%emt 0:00:17]} Bh6 {[%emt 0:01:36]} 41. Ba5 {[%emt 0:
00:00]} h4 {[%emt 0:30:55]} 42. Qb7+ {[%emt 0:01:56]} Bg7 {[%emt 0:02:09]} 43.
Qe4 {[%emt 0:01:43]} Qc1+ {[%emt 0:00:43]} 44. Be1 {[%emt 0:00:26]} hxg3 {
[%emt 0:00:32]} 45. hxg3 {[%emt 0:00:18]} Qc5 {[%emt 0:04:04]} 46. Qc6 {
[%emt 0:00:11]} Bf8 {[%emt 0:00:46]} 47. Qb7+ {[%emt 0:00:55]} Qe7 {[%emt 0:00:
00]} 48. Qh1+ {[%emt 0:00:00]} Kg7 {[%emt 0:00:00]} 49. b6 {[%emt 0:00:00]}
Qf6+ {[%emt 0:00:00]} 50. Bf2 {[%emt 0:00:00]} Qxb6 {[%emt 0:00:00]} 51. Qd5 {
[%emt 0:00:00]} Qd6 {[%emt 0:00:00]} 52. Qb7+ {[%emt 0:00:00]} Be7 {[%emt 0:00:
00]} 53. Kg2 {[%emt 0:00:00]} Kf7 {[%emt 0:00:00]} 54. Be1 {[%emt 0:00:00]} Ke6
{[%emt 0:00:00]} 55. Qc8+ {[%emt 0:00:00]} Kf7 {[%emt 0:00:00]} 56. Qa8 {
[%emt 0:00:00]} Bd8 {[%emt 0:00:00]} 57. Bd2 {[%emt 0:00:00]} Be7 {[%emt 0:00:
00]} 58. Qb7 {[%emt 0:00:00]} Kf6 {[%emt 0:00:00]} 59. Qa8 {[%emt 0:00:00]} Kf7
{[%emt 0:00:00]} 60. Qa2+ {[%emt 0:00:00]} Kg7 {[%emt 0:00:00]} 61. Qc4 {
[%emt 0:00:00]} Qd7 {[%emt 0:00:00]} 62. Qc1 {[%emt 0:00:00]} Qd5+ {[%emt 0:00:
00]} 63. Kh2 {[%emt 0:00:00]} e4 {[%emt 0:00:00]} 64. Qf1 {[%emt 0:00:00]} e3 {
[%emt 0:00:00]} 65. Be1 {[%emt 0:00:00]} Qa2 {[%emt 0:00:00]} 66. Qf3 {[%emt 0:
00:00]} Qa1 {[%emt 0:01:38]} 67. Qe4 {[%emt 0:04:08]} Bf6 {[%emt 0:01:59]} 68.
Bb4 {[%emt 0:00:48]} Qa7 {[%emt 0:02:47]} 69. Bd6 {[%emt 0:00:33]} Qa2 {
[%emt 0:02:43]} 70. Qb7+ {[%emt 0:00:40]} Qf7 {[%emt 0:01:04]} 71. Qe4 {
[%emt 0:01:16]} Kh7 {[%emt 0:00:47]} 72. Qf3 {[%emt 0:01:01]} Qe6 {[%emt 0:00:
00]} 73. Qb7+ {[%emt 0:00:29]} Kh6 {[%emt 0:04:18]} 74. Bf8+ {[%emt 0:00:37]}
Kg5 {[%emt 0:01:18]} 75. Qh7 {[%emt 0:02:00]} Qd5 {[%emt 0:06:06]} 76. Qh4+ {
[%emt 0:01:16]} Kf5 {[%emt 0:00:10]} 77. Qf4+ {[%emt 0:01:02]} Ke6 {[%emt 0:00:
00]} 78. Qg4+ {[%emt 0:00:33]} Kf7 {[%emt 0:00:18]} 79. Bb4 {[%emt 0:00:13]}
Qb5 {[%emt 0:00:57]} 80. Bd6 {[%emt 0:00:23]} Qc6 {[%emt 0:00:37]} 81. Bf4 {
[%emt 0:00:46]} Qb5 {[%emt 0:00:59]} 82. Bd6 {[%emt 0:00:36]} Qc6 {[%emt 0:00:
00]} 83. Bf4 {[%emt 0:00:45]} Be7 {[%emt 0:00:37]} 84. Be5 {[%emt 0:00:32]} Bc5
{[%emt 0:05:30]} 85. Bxd4 {[%emt 0:00:39]} Bxd4 {[%emt 0:01:13]} 86. Qxd4 {
[%emt 0:00:09]} Qe8 {[%emt 0:01:12]} 87. Kg2 {[%emt 0:00:55]} Qa8+ {[%emt 0:00:
00]} 88. Qe4 {[%emt 0:00:10]} Qa7 {[%emt 0:02:48]} 89. Kf3 {[%emt 0:00:27]} g5
{[%emt 0:00:40]} 90. Qf5+ {[%emt 0:00:47]} Ke8 {[%emt 0:00:11]} 91. Qxg5 {
[%emt 0:00:27]} Qf7+ {[%emt 0:00:31]} 92. Qf4 {[%emt 0:00:18]} Qh5+ {[%emt 0:
00:00]} 93. Kxe3 {[%emt 0:00:08]} Qc5+ {[%emt 0:00:11]} 94. Kf3 {[%emt 0:00:53]
} Qc2 {[%emt 0:00:20]} 95. Qe4+ {[%emt 0:00:27]} Kf8 {[%emt 0:00:14]} 96. Qf4+
{[%emt 0:00:35]} Kg7 {[%emt 0:00:11]} 97. Qe5+ {[%emt 0:00:27]} Kg6 {[%emt 0:
00:00]} 98. Qe6+ {[%emt 0:00:21]} Kg7 {[%emt 0:00:09]} 99. Qe7+ {[%emt 0:00:39]
} Kg6 {[%emt 0:00:14]} 100. Qe4+ {[%emt 0:00:35]} Kg7 {[%emt 0:00:15]} 101. d4
{[%emt 0:00:39]} Qc1 {[%emt 0:00:17]} 102. Qg4+ {[%emt 0:00:42]} Kh7 {[%emt 0:
00:00]} 103. Qd7+ {[%emt 0:00:27]} Kh8 {[%emt 0:00:31]} 104. Qe8+ {[%emt 0:00:
00]} Kh7 {[%emt 0:00:18]} 105. Qf7+ {[%emt 0:00:18]} Kh8 {[%emt 0:00:10]} 106.
Qf6+ {[%emt 0:00:15]} Kh7 {[%emt 0:00:08]} 107. Qh4+ {[%emt 0:00:06]} Kg6 {
[%emt 0:00:42]} 108. Qe4+ {[%emt 0:00:43]} Kg7 {[%emt 0:00:12]} 109. Qe5+ {
[%emt 0:00:27]} Kg6 {[%emt 0:00:37]} 110. Qe6+ {[%emt 0:01:11]} Kg7 {[%emt 0:
00:00]} 111. Qe3 {[%emt 0:00:38]} Qc6+ {[%emt 0:01:21]} 112. Kg4 {[%emt 0:00:
00]} Qd7+ {[%emt 0:00:49]} 113. Kh4 {[%emt 0:00:24]} Kh8 {[%emt 0:01:38]} 114.
Qe5+ {[%emt 0:00:47]} Kg8 {[%emt 0:01:03]} 115. d5 {[%emt 0:00:47]} Qh7+ {
[%emt 0:02:06]} 116. Kg4 {[%emt 0:00:20]} Qc2 {[%emt 0:00:58]} 117. Qe6+ {
[%emt 0:00:36]} Kh8 {[%emt 0:00:12]} 118. Qe8+ {[%emt 0:00:19]} Kg7 {[%emt 0:
00:00]} 119. Qe7+ {[%emt 0:00:12]} Kh8 {[%emt 0:00:10]} 120. Qf8+ {[%emt 0:00:
00]} 1-0